Cogmind - Beta 17.1 @@@ ROGUE MODE // 2026.09.20 @ 20:59:02 Player: the Result: Destroyed by UN-W31(R) with Subdweller Laser Performance ------------- Evolutions (0) 0 Regions Visited (2) 400 Robots Destroyed (21) 105 Value Destroyed (509) 509 Prototype IDs (14) 280 Alien Tech Used (0) 0 Bonus (0) 0 TOTAL SCORE: 1294 Bonus ------- None Cogmind --------- Core Integrity 0/250 Matter 478/500 Energy 125/125 System Corruption 0% Temperature Cool (6) Movement Treading (250) Ox1 Location -10/Subcaves Parts ------- > --- POWER (1+1) ------ Light Ion Engine > --- PROPULSION (2+2) - Light Treads (+) Spiked Treads (+) Wheel > --- UTILITY (2+2) ---- Medium Storage Unit (+) High-capacity Matter Pod (+) Tower Shield > --- WEAPON (2+2) ----- Subdweller Machine Gun (+) Subdweller Machine Gun Subdweller Machine Gun (+) Mining Laser > --- INVENTORY (10) --- Light Ion Engine Disposable Heat Sink Seismic Detector Scrap Shield Subdweller Laser Subdweller Laser Subdweller Machine Gun Grenade Launcher Multitool Peak State ------------ > --- POWER ------------ Light Ion Engine > --- PROPULSION ------- Light Treads Spiked Treads Wheel > --- UTILITY ---------- Medium Storage Unit High-capacity Matter Pod Tower Shield > --- WEAPON ----------- Subdweller Machine Gun Subdweller Machine Gun Subdweller Machine Gun Subdweller Machine Gun > --- INVENTORY -------- Light Ion Engine Disposable Heat Sink Seismic Detector Scrap Shield Subdweller Laser Subdweller Laser Grenade Launcher Mining Laser Multitool [Rating: 36] Favorites ----------- Power Ion Engine Engine Ion Engine Propulsion Light Treads Treads Light Treads Wheel Wheel Utility Medium Storage Unit Device Seismic Detector Storage Medium Storage Unit Protection Tower Shield Weapon Subdweller Machine Gun Energy Gun Small Laser Ballistic Gun Subdweller Machine Gun Ballistic Cannon Battle Cannon Special Weapon Mining Laser Build | -11 -10 -10 ------- Run | Yrd Mat Sub Slots Evolved . | . . . Power . | . . . Propulsion . | . . . Utility . | . . . Weapon . | . . . Parts Attached 24 | 7 1 16 Power 2 | 1 . 1 Engine 2 | 1 . 1 Core . | . . . Reactor . | . . . Propulsion 7 | 2 . 5 Treads 6 | 2 . 4 Leg . | . . . Wheel 1 | . . 1 Hover . | . . . Flight . | . . . Utility 7 | 2 1 4 Device 3 | 1 . 2 Storage 3 | 1 1 1 Processor . | . . . Hackware . | . . . Protection 1 | . . 1 Artifact . | . . . Weapon 8 | 2 . 6 Energy Gun 2 | 2 . . Energy Cannon . | . . . Ballistic Gun 4 | . . 4 Ballistic Cannon 1 | . . 1 Launcher . | . . . Special Weapon 1 | . . 1 Impact Weapon . | . . . Slashing Weapon . | . . . Piercing Weapon . | . . . Special Melee Weapon . | . . . Unidentified Prototypes . | . . . Parts Lost 10 | . . 10 Power 1 | . . 1 Propulsion 4 | . . 4 Utility 2 | . . 2 Weapon 3 | . . 3 Highest Loss Streak 6 | . . 6 To Critical Strikes . | . . . Average Backups 7 | 2 6 8 Power . | 1 1 . Propulsion 1 | . 1 . Utility 2 | . 2 2 Weapon 3 | . 1 3 Tool/Special . | . . . Unused Backups 8 | . . 8 Power 1 | . . 1 Propulsion 1 | . . 1 Utility 2 | . . 2 Weapon 3 | . . 3 Tool/Special 1 | . . 1 Average Slot Usage (%) 81 | . 100 77 Engine 9 | . 14 7 Treads 24 | . 28 23 Wheel 1 | . . 1 Device 4 | . 14 2 Storage 13 | . 14 13 Protection 3 | . . 3 Energy Gun 5 | . 28 . Ballistic Gun 13 | . . 17 Ballistic Cannon 2 | . . 3 Special Weapon 1 | . . 1 Peak Build Rating 36 | 7 8 36 Average Rating 19 | 4 7 22 On Entrance 5 | . 7 8 Avg Prop Armor Cover (%) 5 | . . 5 Naked Turns . | . . . Heaviest Build 71 | 14 19 71 Greatest Support 60 | 40 40 60 Greatest Overweight (x) 7 | . . 7 Average Overweight (x) 1 | . . 1 Largest Inventory Capacity 10 | 8 10 10 Average Capacity 9 | 6 9 9 Most Carried 10 | 5 10 10 Average Carried 8 | 2 6 8 Final Capacity 10 | 8 10 10 Final Carried 10 | 4 10 10 Class Distribution -------------------- 55% | Mutant 27% | Scavenger-Gunner 17% | Gunner Dominant Class ---------------- Mutant | -10/Materials Mutant | -10/Subcaves Resources | -11 -10 -10 ----------- Run | Yrd Mat Sub Matter Collected 840 | 251 213 376 Remotely . | . . . Salvage Created 890 | 180 265 445 Parts 65 | 16 21 28 Haulers Intercepted 2 | . 2 . Recyclers Shooed . | . . . Parts Field Recycled . | . . . Retrieved Matter . | . . . Parts Self-Destructed 15 | . . 15 Prevented . | . . . Parts Restored . | . . . Kills | -11 -10 -10 ------- Run | Yrd Mat Sub Combat Hostiles Destroyed 10 | . 2 8 Guns 9 | . 2 7 Cannons 1 | . . 1 Classes Destroyed 8 | 2 4 2 Builder 1 | . 1 . Tunneler 5 | 5 . . Hauler 2 | . 2 . Recycler 1 | 1 . . Watcher 2 | . 2 . Grunt 4 | . 2 2 Sentry 1 | . . 1 Subdweller 5 | . . 5 Best Kill Streak 4 | 4 2 2 Combat Bots Only 2 | . 2 2 Max Kills in Single Turn 1 | 1 1 1 Gunslinging . | . . . Exploded . | . . . Melee . | . . . Uniques/NPCs Destroyed . | . . . Combat | -11 -10 -10 -------- Run | Yrd Mat Sub Hostile Shots Fired 70 | . 3 67 Missed 14 | . 1 13 Hits 56 | . 2 54 Projectile 56 | . 2 54 Critical Strikes 3 | . . 3 Damage Taken 1341 | . 128 1213 Core 255 | . . 255 Absorbed by Shields . | . . . Core Remaining (%) 100 | 100 . . Volleys Fired 137 | 20 22 95 Largest 3 | 1 2 3 Hottest 100 | 40 80 100 Shots Fired 196 | 20 43 133 Gun 153 | 20 43 90 Cannon 15 | . . 15 Launcher . | . . . Special 28 | . . 28 Kinetic 71 | . . 71 Thermal 92 | 20 22 50 Explosive . | . . . Electromagnetic 33 | . 21 12 Robot Hit Streak 37 | 6 7 37 Robot Miss Streak 3 | 2 3 1 Penetration Max . | . . . Secondary Targets . | . . . Shots Hit Robots 122 | 15 25 82 Core Hits 40 | 7 12 21 Critical Kills . | . . . Critical Parts Destroyed . | . . . Critical Strikes 5 | . 3 2 Destroy 2 | . . 2 Corrupt 3 | . 3 . Melee Attacks . | . . . Impact . | . . . Slashing . | . . . Piercing . | . . . Sneak Attacks . | . . . Combat Hostiles . | . . . Follow-up Attacks . | . . . Damage Inflicted 1914 | 167 364 1383 Guns 1569 | 164 311 1094 Cannons 286 | . . 286 Explosions 22 | . 22 . Melee . | . . . Ramming 37 | 3 31 3 Kinetic 1074 | . . 1074 Thermal 521 | 164 160 197 Explosive . | . . . Electromagnetic 282 | . 173 109 Impact . | . . . Slashing . | . . . Piercing . | . . . Highest Corruption . | . . . Average Corruption . | . . . Corruption Purged . | . . . Corruption Blocked . | . . . Overload Shots . | . . . Overflow Damage . | . . . Projectiles . | . . . Explosions . | . . . Melee . | . . . Knockbacks 4 | . 1 3 Impact 1 | . 1 . Kinetic 3 | . . 3 Secondary . | . . . Self-Inflicted Damage 23 | . 23 . Shots 1 | . 1 . Rammed 11 | 1 9 1 Targets Rammed 11 | 1 9 1 Kicked . | . . . Crushed . | . . . Highest Temperature 72 | 15 72 12 Average Temperature 24 | 12 25 12 Received Heat Transfer 369 | . 18 351 Siege Activations . | . . . Martial Activations . | . . . Shielding Activations . | . . . Robots Disrupted . | . . . Combat Hostiles . | . . . Robots Corrupted . | . . . Combat Hostiles . | . . . Parts Fried 1 | . . 1 Impact Corruptions . | . . . Robots Melted . | . . . Combat Hostiles . | . . . Parts Melted . | . . . Heat Transferred 1200 | 375 375 450 Parts Sabotaged . | . . . Parts Stolen . | . . . Parts Stripped . | . . . Power Chain Reactions 1 | . 1 . Alert | -11 -10 -10 ------- Run | Yrd Mat Sub Maximum Alert Level . | . . . Low Security (%) 100 | 100 100 . Level 1 . | . . . Level 2 . | . . . Level 3 . | . . . Level 4 . | . . . Level 5 . | . . . High Security . | . . . Max Security . | . . . Peak Influence 45 | 15 45 . Initial . | . . . Average 5 | 3 5 . Influence Increases 230 | 30 130 70 Destroy 0b10 Robot/C 100 | . 40 60 Destroy 0b10 Robot/NC 55 | 30 25 . Destroy Leader 28 | . 18 10 Successful Hack 9 | . 9 . Disable Machine 30 | . 30 . Destroy Structure 8 | . 8 . Influence Decreases 230 | 30 130 70 Time Decay 230 | 30 130 70 Squads Dispatched 2 | . 2 . Investigation 1 | . 1 . Extermination . | . . . Reinforcement 1 | . 1 . Assault . | . . . Garrison . | . . . Intercept . | . . . Searches Triggered . | . . . Construction Impeded . | . . . Haulers Reinforced . | . . . Active Scanning Responses . | . . . Cargo Convoy Interrupts . | . . . Stealth | -11 -10 -10 --------- Run | Yrd Mat Sub Distress Signals 3 | . 3 . Communications Jammed . | . . . Distress Signals . | . . . Times Spotted 18 | . 8 10 Peak Tracking Total 3 | . 3 2 Tactical Retreats . | . . . Traps | -11 -10 -10 ------- Run | Yrd Mat Sub Traps Triggered 5 | . 3 2 Indirectly . | . . . Trap Hack Attempts . | . . . Triggered . | . . . Disarmed . | . . . Reprogrammed . | . . . Reused . | . . . Traps Extracted . | . . . Installed . | . . . Triggered . | . . . Machines | -11 -10 -10 ---------- Run | Yrd Mat Sub Machines Disabled 3 | . 2 1 Max in Single Turn 1 | . 1 1 Machines Repaired . | . . . Machines Dismantled . | . . . Machines Sabotaged . | . . . Overloaded Fab Kills . | . . . Hacking | -11 -10 -10 --------- Run | Yrd Mat Sub Machines Accessed 5 | . 3 2 Terminals 3 | . 3 . Fabricators . | . . . Repair Stations . | . . . Recycling Units . | . . . Scanalyzers . | . . . Garrison Access . | . . . Total Hacks 11 | . 6 5 Successful 7 | . 2 5 Failed 4 | . 4 . Catastrophic . | . . . Database Lockouts . | . . . Manual 6 | . 6 . Terminals 6 | . 6 . Fabricators . | . . . Repair Stations . | . . . Recycling Units . | . . . Scanalyzers . | . . . Garrison Access . | . . . Terminal Hacks 5 | . . 5 Record 4 | . . 4 Proto ID Catalog 1 | . . 1 Fabricator Hacks . | . . . Repair Station Hacks . | . . . Recycling Unit Hacks . | . . . Scanalyzer . | . . . Garrison Access Hacks . | . . . Unauthorized Hacks 2 | . 2 . Terminals 2 | . 2 . Botnet 1 | . 1 . Skim 1 | . 1 . Fabricators . | . . . Repair Stations . | . . . Recycling Units . | . . . Scanalyzers . | . . . Garrison Access . | . . . Data Cores Recovered . | . . . Used . | . . . Hacking Detections 2 | . 2 . Full Trace Events . | . . . Feedback Events . | . . . Feedback Blocked . | . . . Robot Schematics Acquired . | . . . Robots Built . | . . . Authchips . | . . . Time . | . . . Total Robot Build Rating . | . . . Part Schematics Acquired . | . . . Parts Built . | . . . Authchips . | . . . Time . | . . . Total Part Build Rating . | . . . Part Studies Acquired . | . . . Parts Repaired . | . . . Time . | . . . Parts Recycled . | . . . Recycled Matter . | . . . Retrieved Matter . | . . . Retrieved Components . | . . . Parts Scanalyzed . | . . . Part Schematics Acquired . | . . . Parts Damaged . | . . . Bothacking | -11 -10 -10 ------------ Run | Yrd Mat Sub Used RIF Installer . | . . . Robots Hacked . | . . . Non-combat . | . . . Combat . | . . . Robot Hacks Applied . | . . . Relay Couplers Released . | . . . Fabnet Peak Effective % . | . . . Robots Rewired . | . . . Allies Hacked . | . . . Hacks Repelled . | . . . Allies | -11 -10 -10 -------- Run | Yrd Mat Sub Total Allies . | . . . Largest Group . | . . . Highest-Rated Group . | . . . Highest-Rated Ally . | . . . Total Orders . | . . . Ally Attacks . | . . . Total Damage . | . . . Kills . | . . . Allies Corrupted . | . . . Allies Melted . | . . . Intel | -11 -10 -10 ------- Run | Yrd Mat Sub Active Infowar (turns) 1529 | 66 783 680 Seismic 1529 | 66 783 680 Robot Analysis Total . | . . . Derelict Logs Recovered . | . . . Drone Launches . | . . . Drone Recoveries . | . . . Exploration | -11 -10 -10 ------------- Run | Yrd Mat Sub Turns Passed 4345 | 105 783 3457 Spaces Moved 1810 | 48 431 1331 Core 29 | 29 . . Treads 1437 | 19 431 987 Legs . | . . . Wheels 344 | . . 344 Hover . | . . . Flight . | . . . Fastest Speed 50 | 50 160 160 Average Speed 182 | 93 160 193 Slowest Speed 250 | 160 160 250 Overloaded Moves . | . . . Propulsion Burnouts . | . . . Robots Hopped . | . . . Potential Cave-ins . | . . . Cave-ins Triggered . | . . . Exploration Rate (%) 47 | 3 58 82 Regions Visited 2 Branch Regions 1 Pre-discovered Areas . | . . . Known Exits Taken . | . . . Unknown Exits Taken 2 | 1 1 . Scrap Searched 8 | . . 8 Spaces Dug 5 | . . 5 Terrain Destroyed 17 | . 8 9 Melee . | . . . Projectile 9 | . . 9 AOE 8 | . 8 . Terrain Rammed . | . . . Walls Destroyed . | . . . Machines Disabled . | . . . Actions | -11 -10 -10 --------- Run | Yrd Mat Sub Total 2583 | 87 476 2020 Wait 566 | 2 7 557 Move 1809 | 48 430 1331 Hop . | . . . Pick Up 27 | 9 6 12 Fast Attach 11 | 3 . 8 Attach 12 | 4 . 8 Detach . | . . . Swap 6 | . 1 5 Drop 5 | 1 1 3 Fire 137 | 20 22 95 Melee . | . . . Ram . | . . . Kick . | . . . Crush 10 | . 9 1 Escape Stasis . | . . . Rewire . | . . . Trap . | . . . Miscellaneous . | . . . Route ------- -11/Scrapyard -10/Materials (discovered 3 exits: [*Mat] / [*Min] / *Sub) -10/Subcaves (discovered 2 exits: [*Mat x2]) History --------- Turn | Location | Event 11 | -11/Scrapyard | Discovered new exit (range 15) 106 | -11/Scrapyard | Entered Materials 107 | -10/Materials | Met a group of wandering Federalists 269 | -10/Materials | Discovered new exit (range 8) 314 | -10/Materials | Build established: Mutant 555 | -10/Materials | Discovered new exit (range 7) 879 | -10/Materials | Discovered new exit (range 8) 889 | -10/Materials | Entered Subcaves 890 | -10/Subcaves | Approached by a straggling Scientist 918 | -10/Subcaves | Discovered new exit (range 5) 963 | -10/Subcaves | Disturbed a concealed Subdweller 975 | -10/Subcaves | Disturbed a concealed Subdweller 1037 | -10/Subcaves | Core integrity fell below 50% 1077 | -10/Subcaves | Lost 6 parts (3n1u2w) 1803 | -10/Subcaves | Ambushed by Subdwellers from Twisted Machinery 2215 | -10/Subcaves | Shifting Twisted Machinery released Spk. Treads 2216 | -10/Subcaves | Shifting Twisted Machinery released Sub. Monowheel 2371 | -10/Subcaves | Visited 4L-MR0's lab 2396 | -10/Subcaves | Found Tower Shield 2398 | -10/Subcaves | Attached Tower Shield, gained temporary slots: Power, Propulsion x2, Utility x2, Weapon x2 2527 | -10/Subcaves | A swath of the cavern ceiling suddenly collapsed 2699 | -10/Subcaves | Build established: Gunner 2874 | -10/Subcaves | Core integrity fell below 20% 2900 | -10/Subcaves | Discovered new exit (range 9) 3036 | -10/Subcaves | Visited Clippyterm 3044 | -10/Subcaves | Learned Factory fabricator intel 3044 | -10/Subcaves | Learned Factory garrison access intel 3449 | -10/Subcaves | Build established: Scavenger-Gunner 4328 | -10/Subcaves | Ambushed by Subdweller buried in earth 4345 | -10/Subcaves | Ambushed by Subdweller buried in earth 4346 | -10/Subcaves | Destroyed by UN-W31(R) with Subdweller Laser Last Messages --------------- 03639_ Acquired Scrap Shield. 03640_ Imp. Ion Engine fries itself beyond repair. 03640_ Acquired 6 matter. 03642_ Heat Sink fries itself beyond repair. 03660_ Subatomizers dissect the Sub. Monowheel. 03795_ Subatomizers dissect the Sub. Monowheel, destroying it. 04033_ Lgt. Treads destroyed. 04042_ 3O-4CT(R) destroyed. 04045_ Acquired 7 matter. 04048_ Acquired Sub. Machine Gun. 04050_ Acquired 10 matter. 04329_ UN-W31(R): "ARGHSUB!" 04334_ Critical hit (Destroy). 04336_ Sub. Machine Gun shoots sparks and powers down. 04342_ UN-W31(R) suffers critical hit (Destroy). 04346_ P6-LXO(R): "SLEEPOVER!" Map ----- +----------------------------------------------------+ | ????????# ####"" %% ## ##???????????? | | ??????## # ## #???????????? | | ??????# ##???????????? | | ??????# ###????????????? | | ?????# # ## ## ###??????????????? | | ###????# ########## #????????????????? | | #??????# ##????????##### #????????????????? | | ##??????####?????????????# #????????????????? | | ?????????????????????????## #????????????????? | | ????????????????????????????# ##???????????????? | | ????????????????????????????## #??##???????????? | | ????????????????????????????# #### #???????????? | | ???????????????????????????### ## #???????????? | | ???????????????????????????# # ## #???????????? | | ???????????????????????????# # #???????????? | | ???????????????????????????# # #????????????? | | ??????????????????????????## # ##???????????? | | ??????????????????????????# # # #???????????? | | ??????????????????????????####### #???????????? | | ????????????????????????????????# #???????????? | | ????????????????????????########## #???????????? | | ??????????????????????### # ## # #???????????? | | ??????????????????????# # #???????????? | | ??????????????????????#### ##???????????? | | ??????????????????????## ## # # #???????????? | | ??????????????????????# R@ # # # ####???????????? | | ??????????????????????## R #?????????????? | | ???????????????????????## # # # ###?????????????? | | ????????????????????????##########???????????????? | | ?????????????????????????????????????????????????? | | ?????????????????????????????????????????????????? | | ?????????????????????????????????????????????????? | | ?????????????????????????????????????????????????? | | ?????????????????????????????????????????????????? | | ?????????????????????????????????????????????????? | | ?????????????????????????????????????????????????? | | ?????????????????????????????????????????????????? | | ?????????????????????????????????????????????????? | | ?????????????????????????????????????????????????? | | ?????????????????????????????????????????????????? | | ?????????????????????????????????????????????????? | | ?????????????????????????????????????????????????? | | ?????????????????????????????????????????????????? | | ?????????????????????????????????????????????????? | | ?????????????????????????????????????????????????? | | ?????????????????????????????????????????????????? | | ?????????????????????????????????????????????????? | | ???????????????????????????##???####?????????????? | | ?????????????????????????### #?## ##????????????? | | ?????????????????????????# ## < #????????????? | +----------------------------------------------------+ Best States ------------- Heat Dissipation 25 Energy Generation 10 Energy Capacity 250 Matter Stores 500 Matter Capacity 500 Sight Range 16 Terrain Scan Density 10 Armor Coverage 2000 Evasion (%) 50 Recoil Reduction 3 Item Schematics ----------------- None Robot Schematics ------------------ None Fabricated ------------ Nothing Repaired ---------- Nothing Studied --------- None Alien Tech Used ----------------- None Achievements -------------- None Challenges ------------ None Game ------ Seed DirectedNetworkDisplacer Manual? 0 Play Time 00:15:56 Cumulative 874.3 hours Start 2026.09.20 @ 20:44:45 End 2026.09.20 @ 20:59:02 Sessions 1 Manual Loads 0 Difficulty Rogue Special Mode None Game No. 479 Rogue 479 Adventurer 0 Explorer 0 Win Type - Total 50 Types 22/5/8/2/1/2/6/2/1/1 Lore% 95 Gallery% 90 Achievement% 84 Wizard Run 0 Options --------- Layout 1 ASCII 0 Keyboard 0 Movement Numpad Keybinds 0 Fullscreen 2 Font 24/Smallcaps Map View 50x35 Zoom Use 0% Tactical HUD 1 Map Filters NONE Filters NONE Steam 1 RUN: 85753a6c-1d81-4026-aa1e-d131c0853d13